lending/lending_fUSD_20260124
["ID","MTS","AMOUNT","RATE_DAILY","PERIOD"]
[403226200,1769273446250,-200.0,0.0001726,2]
[403226201,1769273446260,-200.0,0.0001726,2]
[403226202,1769273446269,-200.0,0.0001726,2]
[403226203,1769273446279,-200.0,0.0001726,2]
[403226204,1769273446288,-200.0,0.0001726,2]
[403226205,1769273446298,-200.0,0.0001726,2]
[403226206,1769273446309,-200.0,0.0001726,2]
[403226207,1769273446325,-200.0,0.0001726,2]
[403226208,1769273446337,-200.0,0.0001726,2]
[403226209,1769273446347,-200.0,0.0001726,2]
[403226210,1769273446357,-200.0,0.0001726,2]
[403226211,1769273446367,-200.0,0.0001726,2]
[403226212,1769273446377,-200.0,0.0001726,2]
[403226213,1769273446387,-200.0,0.0001726,2]
[403226214,1769273446396,-200.0,0.0001726,2]
[403226215,1769273446406,-200.0,0.0001726,2]
[403226216,1769273446415,-200.0,0.0001726,2]
[403226217,1769273446425,-200.0,0.0001726,2]
[403226218,1769273446435,-200.0,0.0001726,2]
[403226219,1769273446444,-200.0,0.0001726,2]
[403226220,1769273446453,-200.0,0.0001726,2]
[403226221,1769273446463,-200.0,0.0001726,2]
[403226222,1769273446473,-200.0,0.0001726,2]
[403226223,1769273446482,-200.0,0.0001726,2]
[403226224,1769273446491,-200.0,0.0001726,2]
[403226225,1769273446501,-200.0,0.0001726,2]
[403226226,1769273446511,-200.0,0.0001726,2]
[403226227,1769273446520,-200.0,0.0001726,2]
[403226228,1769273446529,-200.0,0.0001726,2]
[403226229,1769273446538,-200.0,0.0001726,2]
[403226230,1769273446548,-200.0,0.0001726,2]
[403226231,1769273446558,-200.0,0.0001726,2]
[403226232,1769273446567,-188.0,0.0001726,2]
[403226233,1769273446577,-1000.0,0.0001726,2]
[403226234,1769273446587,-1000.0,0.00017266,2]
[403226235,1769273446597,-200.0,0.00017276,2]
[403226236,1769273446606,-2368.5,0.00017278,2]
[403226237,1769273446616,-1000.0,0.00017309,2]
[403226238,1769273446626,-159.59843399,0.00017342,2]
[403226239,1769273446635,-200.0,0.0001735,2]
[403226240,1769273446645,-836.0,0.0001736,2]
[403226241,1769273446655,-175.49,0.00017379,2]
[403226242,1769273446664,-478.76391924,0.00017379,2]
[403226243,1769273446675,-2368.5,0.00017398,2]
[403226244,1769273446684,-150.0,0.00017408,2]
[403226245,1769273446694,-150.0,0.00017414,2]
[403226246,1769273446703,-3183.0,0.00017426,2]
[403226247,1769273446713,-200.0,0.00017438,2]
[403226248,1769273446723,-500.0,0.00017444,2]
[403226249,1769273446732,-5314.44,0.00017464,2]
[403226250,1769273446743,-1000.0,0.00017485,2]
[403226251,1769273446753,-3648.0,0.00017491,2]
[403226252,1769273446763,-261.16646675,0.0001751,2]
[403226253,1769273446773,-1546.22489308,0.00017516,2]
[403226254,1769273446782,-2000.0,0.00017516,2]
[403226255,1769273446792,-2000.0,0.00017516,2]
[403226256,1769273446801,-606.81558128,0.00017516,2]
[403226257,1769273446810,-2000.0,0.00017516,2]
[403226258,1769273446820,-2000.0,0.00017516,2]
[403226259,1769273446830,-1507.7084502,0.00017516,2]
[403226260,1769273446839,-2000.0,0.00017516,2]
[403226261,1769273446849,-2000.0,0.00017516,2]
[403226262,1769273446858,-2000.0,0.00017516,2]
[403226263,1769273446868,-2000.0,0.00017516,2]
[403226264,1769273446877,-2000.0,0.00017516,2]
[403226265,1769273446887,-2368.5,0.00017519,2]
[403226266,1769273446896,-1262.73019669,0.00017534,2]
[403226267,1769273446906,-1000.0,0.00017534,2]
[403226268,1769273446916,-150.0,0.00017543,2]
[403226269,1769273446925,-150.0,0.00017578,2]
[403226270,1769273446935,-3183.0,0.0001758,2]
[403226271,1769273446944,-1000.0,0.00017585,2]
[403226272,1769273446954,-200.0,0.00017587,2]
[403226273,1769273446963,-151.3661,0.000176,2]
[403226274,1769273446973,-200.0,0.00017636,2]
[403226275,1769273446983,-1000.0,0.00017637,2]
[403226276,1769273446994,-2368.5,0.00017639,2]
[403226277,1769273447004,-478.76391924,0.0001764,2]
[403226278,1769273447014,-2702.05219343,0.0001764,2]
[403226279,1769273447023,-43947.56453849,0.0001764,2]
[403226280,1769273447033,-3183.0,0.0001764,2]
[403226281,1769273447042,-400.0,0.00017643,2]
[403226282,1769273447052,-469.17519756,0.00017643,2]
[403226283,1769273447062,-3396.08042674,0.000177,2]
[403226284,1769273447071,-2000.0,0.000177,2]
[403226285,1769273447081,-561.48981825,0.00017701,2]
[403226286,1769273447091,-1613.0,0.00017721,2]
[403226287,1769273447101,-217.15233878,0.00017725,2]
[403226288,1769273447110,-1062.33638913,0.00017725,2]
[403226289,1769273447120,-929.63069455,0.0001773,2]
[403226290,1769273447130,-3964.388,0.00017735,2]
[403226291,1769273447139,-283.26,0.00017735,2]
[403226292,1769273447149,-150.0,0.00017749,2]
[403226293,1769273447158,-1000.0,0.00017758,2]
[403226294,1769273447168,-2368.5,0.00017759,2]
[403226295,1769273447178,-150.0,0.0001777,2]
[403226296,1769273447188,-172.8753019,0.00017778,3]
[403226297,1769273447198,-1000.0,0.000178,2]
[403226298,1769273447207,-150.0,0.00017802,2]
[403226299,1769273447217,-1000.0,0.00017808,2]
[403226300,1769273447227,-1000.0,0.00017811,2]
[403226301,1769273447237,-168.0,0.00017811,2]
[403226302,1769273447248,-930.0,0.00017813,2]
[403226303,1769273447258,-6453.0,0.00017817,2]
[403226304,1769273447267,-2000.0,0.0001782,2]
[403226305,1769273447278,-2000.0,0.0001782,2]
[403226306,1769273447289,-231.38369303,0.0001782,2]
[403226307,1769273447299,-5800.0,0.00017823,2]
[403226308,1769273447309,-551.95368049,0.00017829,2]
[403226309,1769273447320,-194.88703005,0.00017829,2]
[403226310,1769273447332,-311.60217601,0.00017829,2]
[403226311,1769273447342,-96953.83922531,0.0001783,2]
[403226312,1769273447352,-5800.0,0.00017832,2]
[403226313,1769273447364,-5800.0,0.00017841,2]
[403226314,1769273447374,-500.0,0.00017846,2]
[403226315,1769273447384,-25000.0,0.00017847,3]
[403226316,1769273447395,-5800.0,0.00017849,2]
[403226317,1769273447405,-200.0,0.00017855,2]
[403226318,1769273447415,-25000.0,0.00017856,3]
[403226319,1769273447425,-200.0,0.00017856,2]
[403226320,1769273447435,-5800.0,0.00017858,2]
[403226321,1769273447444,-25000.0,0.00017865,3]
[403226322,1769273447454,-1000.0,0.00017865,2]
[403226323,1769273447465,-5800.0,0.00017866,2]
[403226324,1769273447475,-25000.0,0.00017874,3]
[403226325,1769273447485,-5800.0,0.00017874,2]
[403226326,1769273447494,-2368.5,0.0001788,2]
[403226327,1769273447504,-25000.0,0.00017882,3]
[403226328,1769273447514,-5800.0,0.00017883,2]
[403226329,1769273447523,-1000.0,0.00017886,2]
[403226330,1769273447534,-25000.0,0.00017891,3]
[403226331,1769273447547,-5800.0,0.00017891,2]
[403226332,1769273447556,-593.45440139,0.00017895,2]
[403226333,1769273447567,-500.0,0.00017899,2]
[403226334,1769273447576,-25000.0,0.000179,3]
[403226335,1769273447586,-10000.0,0.000179,2]
[403226336,1769273447595,-5800.0,0.000179,2]
[403226337,1769273447605,-478.76391924,0.000179,2]
[403226338,1769273447615,-261.16646675,0.000179,2]
[403226339,1769273447625,-7609.85651561,0.000179,3]
[403226340,1769273447634,-190.80620809,0.000179,3]
[403226341,1769273447644,-982.83234994,0.000179,2]
[403226342,1769273447654,-13995.31137832,0.000179,2]
[403226343,1769273447664,-8210.6168647,0.000179,2]
[403226344,1769273447673,-6686.0,0.000179,2]
[403226345,1769273447683,-153.7074367,0.00017912,2]
[403226346,1769273447693,-200.0,0.00017917,2]
[403226347,1769273447702,-175.49,0.00017933,2]
[403226348,1769273447712,-152.0,0.00017943,7]
[403226349,1769273447723,-1000.0,0.00017943,2]
[403226350,1769273447733,-1000.0,0.00017944,2]
[403226351,1769273447743,-150.0,0.00017945,2]
[403226352,1769273447752,-175.49,0.00017967,2]
[403226353,1769273447763,-500.0,0.0001797,2]
[403226354,1769273447773,-1000.0,0.0001797,2]
[403226355,1769273447783,-500.0,0.0001797,2]
[403226356,1769273447793,-1000.0,0.0001797,2]
[403226357,1769273447802,-500.0,0.0001797,2]
[403226358,1769273447812,-1000.0,0.0001797,2]
[403226359,1769273447822,-500.0,0.0001797,2]
[403226360,1769273447831,-1000.0,0.0001797,2]
[403226361,1769273447843,-500.0,0.0001797,2]
[403226362,1769273447863,-500.0,0.0001797,2]
[403226363,1769273447878,-601.31337833,0.0001797,2]
[403226364,1769273447889,-1000.0,0.0001797,2]
[403226365,1769273447900,-1000.0,0.0001797,2]
[403226366,1769273447911,-1425.13914229,0.0001797,2]
[403226367,1769273447922,-15055.0,0.00017973,2]
[403226368,1769273447931,-150.0,0.00017973,2]
[403226369,1769273448016,-500.0,0.00017973,2]
[403226370,1769273448026,-500.0,0.00017973,2]
[403226371,1769273448036,-500.0,0.00017973,2]
[403226372,1769273448045,-162.86883444,0.00017973,2]
[403226373,1769273448054,-558.82608128,0.00017973,2]
[403226374,1769273448063,-500.0,0.00017973,2]
[403226375,1769273448074,-161.29695591,0.00017973,2]
[403226376,1769273448083,-208.11665623,0.00017973,2]
[403226377,1769273448092,-500.0,0.00017973,2]
[403226378,1769273448102,-500.0,0.00017973,2]
[403226379,1769273448111,-521.52144255,0.00017973,2]
[403226380,1769273448121,-500.0,0.00017973,2]
[403226381,1769273448130,-500.0,0.00017973,2]
[403226382,1769273448139,-500.0,0.00017973,2]
[403226383,1769273448148,-500.0,0.00017973,2]
[403226384,1769273448157,-335.93123339,0.00017973,2]
[403226385,1769273448167,-163.10376799,0.00017973,2]
[403226386,1769273448176,-500.0,0.00017973,2]
[403226387,1769273448185,-500.0,0.00017973,2]
[403226388,1769273448194,-500.0,0.00017973,2]
[403226389,1769273448203,-500.0,0.00017973,2]
[403226390,1769273448213,-500.0,0.00017973,2]
[403226391,1769273448223,-500.0,0.00017973,2]
[403226392,1769273448232,-500.0,0.00017973,2]
[403226393,1769273448242,-500.0,0.00017973,2]
[403226394,1769273448251,-500.0,0.00017973,2]
[403226395,1769273448270,-500.0,0.00017973,2]
[403226396,1769273448281,-500.0,0.00017973,2]
[403226397,1769273448301,-500.0,0.00017973,2]
[403226398,1769273448319,-161.20666181,0.00017973,2]
[403226399,1769273448330,-150.87644931,0.00017973,2]
[403226400,1769273448340,-161.7441045,0.00017973,2]
[403226401,1769273448351,-333.14308792,0.00017973,2]
[403226402,1769273448360,-158.06916035,0.00017973,2]
[403226403,1769273448370,-160.05160425,0.00017973,2]
[403226404,1769273448379,-500.0,0.00017973,2]
[403226405,1769273448389,-163.215227,0.00017973,2]
[403226406,1769273448402,-500.0,0.00017973,2]
[403226407,1769273448411,-500.0,0.00017973,2]
[403226408,1769273448420,-500.0,0.00017973,2]
[403226409,1769273448430,-500.0,0.00017973,2]
[403226410,1769273448439,-500.0,0.00017973,2]
[403226411,1769273448448,-500.0,0.00017973,2]
[403226412,1769273448458,-500.0,0.00017973,2]
[403226413,1769273448467,-160.30101054,0.00017973,2]
[403226414,1769273448476,-160.05242782,0.00017973,2]
[403226415,1769273448486,-180.05440168,0.00017973,2]
[403226416,1769273448496,-160.04998238,0.00017973,2]
[403226417,1769273448505,-500.0,0.00017973,2]
[403226418,1769273448515,-500.0,0.00017973,2]
[403226419,1769273448526,-160.04899722,0.00017973,2]
[403226420,1769273448535,-160.95253726,0.00017973,2]
[403226421,1769273448545,-159.93585942,0.00017973,2]
[403226422,1769273448554,-160.03828545,0.00017973,2]
[403226423,1769273448563,-160.0507877,0.00017973,2]
[403226424,1769273448572,-160.05036115,0.00017973,2]
[403226425,1769273448581,-157.31967869,0.00017973,2]
[403226426,1769273448590,-500.0,0.00017973,2]
[403226427,1769273448600,-573.18204786,0.00017973,2]
[403226428,1769273448610,-500.0,0.00017973,2]
[403226429,1769273448621,-500.0,0.00017973,2]
[403226430,1769273448631,-500.0,0.00017973,2]
[403226431,1769273448642,-500.0,0.00017973,2]
[403226432,1769273448652,-500.0,0.00017973,2]
[403226433,1769273448662,-500.0,0.00017973,2]
[403226434,1769273448672,-500.0,0.00017973,2]
[403226435,1769273448680,-160.05079201,0.00017973,2]
[403226436,1769273448689,-336.33747242,0.00017973,2]
[403226437,1769273448699,-500.0,0.00017973,2]
[403226438,1769273448708,-500.0,0.00017973,2]
[403226439,1769273448717,-160.03318119,0.00017973,2]
[403226440,1769273448727,-500.0,0.00017973,2]
[403226441,1769273448736,-500.0,0.00017973,2]
[403226442,1769273448745,-512.1744801,0.00017973,2]
[403226443,1769273448755,-160.04994992,0.00017973,2]
[403226444,1769273448765,-308.89625283,0.00017973,2]
[403226445,1769273448775,-511.74783648,0.00017973,2]
[403226446,1769273448785,-284.08136107,0.00017973,2]
[403226447,1769273448795,-485.5720463,0.00017973,2]
[403226448,1769273448804,-169.51216753,0.00017973,2]
[403226449,1769273448814,-508.83270828,0.00017973,2]
[403226450,1769273448823,-500.0,0.00017973,2]
[403226451,1769273448833,-167.78129088,0.00017973,2]
[403226452,1769273448843,-500.0,0.00017973,2]
[403226453,1769273448852,-500.0,0.00017973,2]
[403226454,1769273448862,-164.56853003,0.00017973,2]
[403226455,1769273448871,-500.0,0.00017973,2]
[403226456,1769273448880,-500.0,0.00017973,2]
[403226457,1769273448889,-161.03754612,0.00017973,2]
[403226458,1769273448898,-208.57012707,0.00017973,2]
[403226459,1769273448907,-500.0,0.00017973,2]
[403226460,1769273448916,-500.0,0.00017973,2]
[403226461,1769273448925,-500.0,0.00017973,2]
[403226462,1769273448934,-500.0,0.00017973,2]
[403226463,1769273448943,-500.0,0.00017973,2]
[403226464,1769273448952,-500.0,0.00017973,2]
[403226465,1769273448961,-500.0,0.00017973,2]
[403226466,1769273448970,-500.0,0.00017973,2]
[403226467,1769273448979,-500.0,0.00017973,2]
[403226468,1769273448989,-500.0,0.00017973,2]
[403226469,1769273448998,-162.47485834,0.00017973,2]
[403226470,1769273449007,-500.0,0.00017973,2]
[403226471,1769273449017,-161.24700646,0.00017973,2]
[403226472,1769273449025,-161.91357387,0.00017973,2]
[403226473,1769273449034,-548.15607658,0.00017973,2]
[403226474,1769273449043,-500.0,0.00017973,2]
[403226475,1769273449052,-410.92119628,0.00017973,2]
[403226476,1769273449061,-500.0,0.00017973,2]
[403226477,1769273449071,-150.0,0.00017973,2]
[403226478,1769273449082,-1000.0,0.00017981,2]
[403226479,1769273449091,-500.0,0.00017982,2]
[403226480,1769273449100,-1185.90178612,0.0001799,2]
[403226481,1769273449109,-1185.90178612,0.0001799,2]
[403226482,1769273449118,-152.734551,0.00017995,2]
[403226483,1769273449128,-14265.5362417,0.00017997,2]
[403226484,1769273449136,-151.0,0.00017997,2]
[403226485,1769273449146,-150.0,0.00017999,2]
[403226486,1769273449155,-150.0,0.00017999,2]
[403226487,1769273449165,-156.86309582,0.00017999,2]
[403226488,1769273449175,-1102.07325121,0.00017999,5]
[403226489,1769273449184,-300.0,0.00017999,2]
[403226490,1769273449193,-500.0,0.00017999,2]
[403226491,1769273449202,-500.0,0.00017999,2]
[403226492,1769273449211,-500.0,0.00017999,2]
[403226493,1769273449220,-500.0,0.00017999,2]
[403226494,1769273449229,-500.0,0.00017999,2]
[403226495,1769273449239,-500.0,0.00017999,2]
[403226496,1769273449253,-500.0,0.00017999,2]
[403226497,1769273449262,-500.0,0.00017999,2]
[403226498,1769273449271,-174.88782971,0.00017999,2]
[403226499,1769273449280,-300.0,0.00017999,2]
[403226500,1769273449289,-300.0,0.00017999,2]
[403226501,1769273449298,-300.0,0.00017999,2]
[403226502,1769273449306,-300.0,0.00017999,2]
[403226503,1769273449316,-300.0,0.00017999,2]
[403226504,1769273449328,-500.0,0.00017999,2]
[403226505,1769273449338,-500.0,0.00017999,2]
[403226506,1769273449347,-500.0,0.00017999,2]
[403226507,1769273449356,-500.0,0.00017999,2]
[403226508,1769273449367,-500.0,0.00017999,2]
[403226509,1769273449376,-500.0,0.00017999,2]
[403226510,1769273449385,-500.0,0.00017999,2]
[403226511,1769273449397,-500.0,0.00017999,2]
[403226512,1769273449407,-500.0,0.00017999,2]
[403226513,1769273449418,-500.0,0.00017999,2]
[403226514,1769273449428,-500.0,0.00017999,2]
[403226515,1769273449439,-500.0,0.00017999,2]
[403226516,1769273449450,-500.0,0.00017999,2]
[403226517,1769273449459,-500.0,0.00017999,2]
[403226518,1769273449469,-500.0,0.00017999,2]
[403226519,1769273449480,-639.1,0.00017999,2]
[403226520,1769273449488,-300.0,0.00017999,2]
[403226521,1769273449499,-300.0,0.00017999,2]
[403226522,1769273449510,-150.0,0.00017999,2]
[403226523,1769273449519,-3862369.17617125,0.00018,2]
[403226524,1769273449528,-2306065.08106756,0.00018,2]
[403226525,1769273450006,-554323.01977139,0.00018,2]
[403226526,1769273450018,-6469.82009028,0.00018,2]
[403226527,1769273450029,-549.76957592,0.00018,2]
[403226528,1769273450134,-1043.55465848,0.00018,2]
[403226529,1769273450827,-633.92371775,0.00016438,2]
[403226530,1769273450839,-163.84628225,0.00016438,2]
[403226531,1769273450849,-797.77,0.00016438,2]
[403226532,1769273450859,-797.77,0.00016438,2]
[403226533,1769273450868,-797.77,0.00016438,2]
[403226534,1769273450878,-797.77,0.00016438,2]
[403226535,1769273450889,-797.77,0.00016438,2]
[403226536,1769273450899,-797.77,0.00016438,2]
[403226537,1769273450910,-797.77,0.00016438,2]
[403226538,1769273450920,-797.89,0.00016438,2]
[403226539,1769273450929,-217795.40274173,0.00018,2]
[403226540,1769273451121,-8555.36255082,0.00018,2]
[403226541,1769273451132,-2287.30477774,0.00018,2]
[403226542,1769273451177,-20626.08924308,0.00018,2]
[403226543,1769273451189,-9054.03163964,0.00018,2]
[403226544,1769273451200,-258.58158934,0.00018,2]
[403226545,1769273451212,-304.72071583,0.00018,2]
[403226548,1769273452979,-282.28244581,0.00018,2]
[403226549,1769273453009,-408.7263527,0.00018,2]
[403226550,1769273453180,-11004.77245485,0.00018,2]
[403226551,1769273453193,-1811.34027518,0.00018,2]
[403226552,1769273493297,-163.83968361,0.00011064,2]
[403226553,1769273495451,-445.55790925,0.00011064,2]
[403226554,1769273497980,-834.03947645,0.00011064,2]
[403226555,1769273501284,-209.78581975,0.00011064,2]
[403226556,1769273503454,-311.9700595,0.00011064,2]
[403226557,1769273506917,-220.48513553,0.00011064,2]
[403226558,1769273508980,-300.0,0.00011064,2]
[403226559,1769273510810,-333.88342781,0.00011064,2]
[403226560,1769273512242,-300.0,0.00011064,2]
[403226561,1769273514532,-217.50417788,0.00011064,2]
[403226564,1769273552915,-300.0,0.00011063,2]
[403226565,1769273552943,-195.0,0.00011063,2]
[403226566,1769273553044,-9010.01,0.00011064,2]
[403226567,1769273553198,-10000.01,0.00011064,2]
[403226568,1769273553268,-10000.01,0.00011064,2]
[403226569,1769273553474,-10000.01,0.00011064,2]
[403226570,1769273553657,-10000.01,0.00011064,2]
[403226571,1769273553728,-10000.01,0.00011064,2]
[403226572,1769273553774,-10000.01,0.00011064,2]
[403226573,1769273553901,-10000.01,0.00011064,2]
[403226574,1769273554076,-10000.01,0.00011064,2]
[403226577,1769273556242,-10000.01,0.00011064,2]
[403226578,1769273558877,-10000.01,0.00011064,2]
[403226579,1769273559096,-10000.01,0.00011064,2]
[403226580,1769273559338,-10000.01,0.00011064,2]
[403226581,1769273559407,-10000.01,0.00011064,2]
[403226582,1769273559482,-10000.01,0.00011064,2]
[403226583,1769273559604,-10000.01,0.00011064,2]
[403226584,1769273560163,-10000.01,0.00011064,2]
[403226585,1769273560215,-10000.01,0.00011064,2]
[403226587,1769273602266,-2057.19724691,0.00011063,2]
[403226588,1769273602297,-300.0,0.00011063,2]
[403226589,1769273602326,-1110.0,0.00011063,2]
[403226590,1769273602411,-3065.61550618,0.00011064,2]
[403226591,1769273602475,-10000.01,0.00011064,2]
[403226592,1769273602615,-10000.01,0.00011064,2]
[403226593,1769273602743,-10000.01,0.00011064,2]
[403226594,1769273602955,-10000.01,0.00011064,2]
[403226595,1769273602986,-10000.01,0.00011064,2]
[403226596,1769273603069,-10000.01,0.00011064,2]
[403226597,1769273603240,-10000.01,0.00011064,2]
[403226598,1769273603411,-10000.01,0.00011064,2]
[403226599,1769273609360,-10000.01,0.00011064,2]
[403226600,1769273609427,-10000.01,0.00011064,2]
[403226601,1769273609470,-10000.01,0.00011064,2]
[403226602,1769273609531,-10000.01,0.00011064,2]
[403226603,1769273609559,-10000.01,0.00011064,2]
[403226604,1769273609607,-10000.01,0.00011064,2]
[403226605,1769273609648,-10000.01,0.00011064,2]
[403226606,1769273609680,-10000.01,0.00011064,2]
[403226607,1769273609714,-10000.01,0.00011064,2]
[403226610,1769273620895,-10000.01,0.00011064,2]
[403226611,1769273620957,-10000.01,0.00011064,2]
[403226612,1769273624282,355.08698959,0.00010964,2]
[403226613,1769273626563,-10000.01,0.00011064,2]
[403226614,1769273626708,-10000.01,0.00011064,2]
[403226615,1769273650423,191.0,0.00010952,2]
[403226626,1769273685642,-277.80208557,0.00011063,2]
[403226627,1769273688070,-22.19791443,0.00011063,2]
[403226628,1769273688092,-150.0,0.00011063,2]
[403226629,1769273688113,-214.19145867,0.00011063,2]
[403226630,1769273689836,-85.80854133,0.00011063,2]
[403226631,1769273689858,-300.0,0.00011063,2]
[403226632,1769273689885,-18.61135619,0.00011064,2]
[403226633,1769273692278,-221.38599981,0.00011064,2]
[403226634,1769273692605,-10000.01,0.00011064,2]
[403226635,1769273692832,-10000.01,0.00011064,2]
[403226636,1769273694580,-259.49426084,0.00011064,2]
[403226637,1769273696763,-303.74099113,0.00011064,2]
[403226638,1769273699075,-10000.01,0.00011064,2]
[403226639,1769273699122,-256.57295727,0.00011064,2]
[403226640,1769273699209,-10000.01,0.00011064,2]
[403226644,1769273756039,32941.4774,0.00010964,2]
[403226645,1769273775601,-178.97356656,0.00011063,2]
[403226646,1769273776863,-158.98184327,0.00011063,2]
[403226647,1769273780306,-2169.842019,0.00011007,2]
[403226648,1769273780336,-162.04459017,0.00011063,2]
[403226649,1769273780367,-317.53941047,0.00011063,2]
[403226650,1769273780395,-500.0,0.00011063,2]
[403226651,1769273780423,-607.82540622,0.00011063,2]
[403226652,1769273780455,-1200.0,0.00011063,2]
[403226653,1769273780644,-85.50714828,0.00011063,2]
[403226654,1769273780676,-214.49285172,0.00011063,2]
[403226655,1769273780700,-76.42925516,0.00011063,2]
[403226656,1769273780734,-223.57074484,0.00011063,2]
[403226657,1769273780841,-500.0,0.00011063,2]
[403226658,1769273780916,-9052.86851032,0.00011064,2]
[403226659,1769273780958,-500.0,0.00011063,2]
[403226660,1769273780998,-9000.01,0.00011064,2]
[403226661,1769273781036,-500.0,0.00011063,2]
[403226662,1769273781046,-9500.01,0.00011064,2]
[403226665,1769273783342,-500.0,0.00011063,2]
[403226666,1769273783432,-9000.01,0.00011064,2]
[403226667,1769273785888,-248.356892,0.00011064,2]
[403226668,1769273789011,-579.65078794,0.00011064,2]
[403226669,1769273791938,-254.84613125,0.00011064,2]
[403226670,1769273793283,-596.81575953,0.00011064,2]
[403226671,1769273795548,-423.18500909,0.00011064,2]
[403226672,1769273798250,-409.01146475,0.00011064,2]
[403226673,1769273800825,-156.30632335,0.00011064,2]
[403226674,1769273801787,-174.61919141,0.00011064,2]
[403226675,1769273803270,-250.85993553,0.00011063,2]
[403226676,1769273804720,-175.39869777,0.00011063,2]
[403226677,1769273807675,-73.7413667,0.00011063,2]
[403226678,1769273807700,-218.05020148,0.00011063,2]
[403226679,1769273807728,-181.02408452,0.00011064,2]
[403226680,1769273809267,-154.97974583,0.00011064,2]
[403226681,1769273810732,-207.09347675,0.00011064,2]
[403226682,1769273814167,-405.29924118,0.00011064,2]
[403226683,1769273815139,-200.15428726,0.00011064,2]
[403226684,1769273816513,-360.95543235,0.00011064,2]
[403226685,1769273818680,-272.06885572,0.00011064,2]
[403226686,1769273822017,-300.0,0.00011063,2]
[403226687,1769273822043,-135.28879196,0.00011064,2]
[403226688,1769273823571,-150.0,0.00011063,2]
[403226689,1769273823598,-146.64785053,0.00011064,2]
[403226690,1769273824945,-209.20770058,0.00011063,2]
[403226691,1769273826435,-36.79229942,0.00011063,2]
[403226692,1769273826460,-265.20770058,0.00011064,2]
[403226693,1769273827960,-253.0140025,0.00011064,2]
[403226694,1769273829394,-380.0870979,0.00011064,2]
[403226695,1769273833226,-203.33800107,0.00011064,2]
[403226696,1769273834211,291.52768833,0.00010964,2]
[403226697,1769273835176,-199.77571834,0.00011057,2]
[403226698,1769273837597,-209.40344106,0.00011057,2]
[403226699,1769273840731,-90.8208406,0.00011057,2]
[403226700,1769273840753,-253.51851741,0.00011057,2]
[403226701,1769273843305,-164.37935511,0.00011057,2]
[403226702,1769273843326,-236.17696075,0.00011057,2]
[403226703,1769273843350,-18.45011918,0.00011063,2]
[403226704,1769273845505,-171.66569563,0.00011063,2]
[403226705,1769273846775,-256.54516795,0.00011063,2]
[403226709,1769273848509,-151.0,0.00011057,2]
[403226710,1769273848535,-53.33901724,0.00011063,2]
[403226711,1769273848560,-32.05465924,0.00011063,2]
[403226712,1769273850072,-151.0,0.00011057,2]
[403226713,1769273850095,-151.0,0.00011057,2]
[403226714,1769273850122,-151.0,0.00011057,2]
[403226715,1769273850149,-2.80074815,0.00011063,2]
[403226716,1769273853267,-151.0,0.00011057,2]
[403226717,1769273853290,-151.0,0.00011057,2]
[403226718,1769273853312,-151.0,0.00011057,2]
[403226719,1769273853339,-465.14459261,0.00011063,2]
[403226720,1769273853364,-211.43901707,0.00011063,2]
[403226721,1769273855266,-209.21893678,0.00011063,2]
[403226722,1769273856340,-79.34204615,0.00011063,2]
[403226723,1769273856366,-231.19952246,0.00011063,2]
[403226725,1769273866023,-229.37692669,0.00011063,2]
[403226727,1769273867400,-39.42355085,0.00011063,2]
[403226728,1769273867426,-120.7263648,0.00011063,2]